Workbook

Sheet Журнал торгов
A1: СТО | B1: МОП | C1: Статус | D1: Комментарий | E1: Актив | F1: Пассив | G1: Дата публикации | H1: Площадка | I1: № извещения | J1: Заказчик | K1: Предмет договора | L1: НМЦК | M1: СВК | N1: ПСЗК | O1: РОЗ | P1: ОИК | Q1: Дата подачи заявки | R1: Новая дата подачи заявки | S1: Дата игры | T1: Новая дата игры | U1: № заявки | V1: ПОБЕДИТЕЛЬ
G2: 12.01.2017 (МСК+7) | H2: АО «ЕЭТП» | I2: 31704658676 | J2: КРАЕВОЙ КЛИНИЧЕСКИЙ ЦЕНТР СПЕЦИАЛИЗИРОВАННЫХ ВИДОВ МЕДИЦИНСКОЙ ПОМОЩИ | K2: бахилы | L2: 357600 | O2: 400 | Q2: 18.01.2017 в 12:00 (МСК+7) | S2: 19.01.2017 в 13:00 (МСК+7) | AH2: НЕ УДАЛЯТЬ
G3: 2017-01-12T08:48:00 | H3: ЗАО «Сбербанк-АСТ» | I3: 0320300090617000001 | J3: ВЛАДИВОСТОКСКАЯ КЛИНИЧЕСКАЯ БОЛЬНИЦА № 1 | K3: комплектующие к медицинскому оборудованию (Система эндоскопическая | L3: 1100000 | O3: 11000 | P3: 55000 | Q3: 2017-01-17T09:00:00 | S3: 23.01.2017 09:30 | AH3: На проверку
G4: 18.01.2017 (МСК+7) | H4: ЗАО «Сбербанк-АСТ» | I4: 31704677550 | J4: Краевая клиническая больница № 2 | K4: Инструменты и приспособления офтальмологические | L4: 2523606 | O4: 25236.06 | P4: 126180.3 | Q4: 25.01.2017 в 02:00 (МСК+7) | S4: 25.01.2017 в 10:00 (МСК+7) | AH4: Взять в работу
G5: 18.01.2017 (МСК+7) | H5: Запрос котировок | I5: 31704677539 | J5: Центр гигиены и эпидемиологии в Приморском крае | K5: инструмент измерительный прочий, не включенный в другие группировки | L5: 106642 | Q5: 24.01.2017 в 16:00 (МСК+7) | S5: 25.01.2017 в 11:00 (МСК+7) | AH5: Не работаем
G6: 20.01.2017 (МСК+7) | H6: ЗАО «Сбербанк-АСТ» | I6: 31704683246 | J6: Краевая клиническая больница № 2 | K6: иммуноферментного анализатора | L6: 5302850 | AH6: Принят в работу
G7: 20.01.2017 (МСК+7) | H7: ЗАО «Сбербанк-АСТ» | I7: 31704684999 | J7: Краевая клиническая больница № 2 | K7: Поставка прибора офтальмологического ультразвуковой диагностики | L7: 2384183.33 | O7: 23841.83 | P7: 715255 | Q7: 27.01.2017 в 02:00 (МСК+7) | S7: 27.01.2017 в 10:00 (МСК+7) | AH7: Выиграли
G8: 20.01.2017 (МСК+7) | H8: РТС-тендер | I8: 31704686152 | J8: ДАЛЬНЕВОСТОЧНЫЙ ФЕДЕРАЛЬНЫЙ УНИВЕРСИТЕТ | K8: расходного материала для выполнения нейрохирургических операций | L8: 29375150 | O8: 1468757.5 | P8: 6168781 | Q8: 13.02.2017 в 10:00 (МСК+7) | S8: 20.02.2017 в 16:00 (МСК+7) | AH8: Не выиграли
G9: 23.01.2017 (МСК+7) | H9: Запрос котировок | I9: 31704692578 | J9: Центр гигиены и эпидемиологии в Приморском крае | K9: Среды готовые питательные для выращивания микроорганизмов | L9: 58624.8 | Q9: 30.01.2017 в 16:00 (МСК+7) | S9: 31.01.2017 в 10:30 (МСК+7) по местному времени | AH9: Отклонили по 1ч
G10: 23.01.2017 (МСК+7) | H10: Запрос котировок | I10: 31704692505 | J10: Центр гигиены и эпидемиологии в Приморском крае» | K10: микропланшет, пипетка, наконечник | L10: 147888 | Q10: 30.01.2017 в 16:00 (МСК+7) | S10: 31.01.2017 в 10:00 (МСК+7) | AH10: Отклонили по 2ч
G11: 23.01.2017 (МСК+7) | H11: Запрос котировок | I11: 31704691604 | J11: КРАЕВАЯ ПСИХИАТРИЧЕСКАЯ БОЛЬНИЦА № 2 | K11: колющие | L11: 253821 | Q11: 27.01.2017 в 16:30 (МСК+7) | S11: 30.01.2017 в 10:00 (МСК+7) | AH11: Жалоба в УФАС
G12: 23.01.2017 (МСК+7) | H12: Запрос котировок | I12: 31704691482 | J12: КРАЕВАЯ ПСИХИАТРИЧЕСКАЯ БОЛЬНИЦА № 3 | K12: перчатки | L12: 176236 | Q12: 27.01.2017 в 16:30 (МСК+7) | S12: 30.01.2017 в 10:00 (МСК+7) | AH12: Запрос
G13: 2017-01-31T10:00:00 | H13: ЗАО «Сбербанк-АСТ» | I13: 0320300075917000001 | J13: КРАЕВАЯ КЛИНИЧЕСКАЯ ИНФЕКЦИОННАЯ БОЛЬНИЦА | K13: салфетки, повязки | L13: 297748.3 | O13: 2977.48 | P13: 14887.42 | Q13: 2017-02-08T10:00:00 | S13: 2017-02-13T09:00:00 | AH13: Продлён
G14: 2017-01-31T07:10:00 | H14: ЗАО «Сбербанк-АСТ» | I14: 0320300045217000007 | J14: ЛЕСОЗАВОДСКАЯ ЦЕНТРАЛЬНАЯ ГОРОДСКАЯ БОЛЬНИЦА | K14: дезы | L14: 2434897.67 | O14: 24348.98 | P14: 121744.88 | Q14: 2017-02-08T09:00:00 | S14: 2017-02-13T09:30:00 | AH14: Отменён
G15: 2017-01-31T08:39:00 | H15: ЗАО «Сбербанк-АСТ» | I15: 0320300091117000005 | J15: АРТЕМОВСКАЯ ГОРОДСКАЯ БОЛЬНИЦА № 1 | K15: для лаборатории | L15: 922501.57 | O15: 9225.02 | P15: 46125.08 | Q15: 2017-02-08T10:00:00 | S15: 2017-02-13T13:45:00 | AH15: Отгружаем
G16: 2017-01-31T07:13:00 | H16: ЗАО «Сбербанк-АСТ» | I16: 0320300045217000008 | J16: ЛЕСОЗАВОДСКАЯ ЦЕНТРАЛЬНАЯ ГОРОДСКАЯ БОЛЬНИЦА | K16: для нужд травматологического отделения | L16: 607276.28 | O16: 6072.76 | P16: 30363.81 | Q16: 2017-02-08T09:00:00 | S16: 2017-02-13T09:45:00 | AH16: Расторгнут
G17: 02.02.2017 (МСК+7) | H17: РТС-тендер | I17: 31704746762 | J17: ДАЛЬНЕВОСТОЧНЫЙ ФЕДЕРАЛЬНЫЙ УНИВЕРСИТЕТ | K17: Поставка расходных материалов к комплексу роботизированному хирургическому эндоскопическому da Vinci Si, IS3000 | L17: 8912904 | O17: 445645.2 | P17: 980419.44 | Q17: 27.02.2017 в 10:00 (МСК+7) | S17: 06.03.2017 в 16:00 (МСК+7) | AH17: Закрыт
B18: Саша | C18: На проверку | G18: 2017-08-31T17:57:00 | H18: АО «ЕЭТП» | I18: 0320300089417000068 | J18: ВЛАДИВОСТОКСКАЯ ПОЛИКЛИНИКА № 6 | K18: Поставка одноразовых медицинских изделий | L18: 529944.00 | O18: 5299.44 | P18: 52994.40 | Q18: 2017-09-08T18:00:00 | S18: 2017-09-15
C19: Взять в работу | G19: 01.09.2017 (МСК+7) | H19: Запрос котировок | I19: 31705482599 | J19: КГБУ СОЦИАЛЬНОГО ОБСЛУЖИВАНИЯСПАССКИЙ ДОМ-ИНТЕРНАТ ДЛЯ ПРЕСТАРЕЛЫХ И ИНВАЛИДОВ | K19: Кровать металлическая одноярусная К-С1(3),Матрас пружинный | L19: 341696.2 | Q19: 13.09.2017 в 10:00 | S19: 13.09.2017 в 10:20 (МСК+7)
A20: Катя | B20: Саша | C20: Не работаем | G20: 2017-09-03T16:45:00 | H20: ЗАО «Сбербанк-АСТ» | I20: 0320100031717000113 | J20: ФГКУ1477 ВОЕННО-МОРСКОЙ КЛИНИЧЕСКИЙ ГОСПИТАЛЬ МИНИСТЕРСТВА ОБОРОНЫ РОССИЙСКОЙ ФЕДЕРАЦИИ | K20: Пакет бумажный самоклеящийся (крафт), 100 шт/упаковка 300*390,Пакет для паровой, воздушной, этиленоксидной, радиационной стерилизации комбинированный самоклеящийся плоский с индикатором 5 класса",Изделия медицинского назначения 6,3л для сбора острого инструментария | L20: 424316 | O20: 4243.16 | P20: 21215.8 | Q20: 2017-09-13T12:00:00 | S20: 2017-09-19
C21: Принят в работу | G21: 2017-09-03T15:35:00 | H21: ЗАО «Сбербанк-АСТ» | I21: 0320100031717000112 | J21: ФГКУ1477 ВОЕННО-МОРСКОЙ КЛИНИЧЕСКИЙ ГОСПИТАЛЬ МИНИСТЕРСТВА ОБОРОНЫ РОССИЙСКОЙ ФЕДЕРАЦИИ | K21: Игла фистульная 16 G венoзная ,Катетер для гемoдиализа из пoлиуретана с набoрoм для устанoвки, двухпрoсветный, краткoвременный, прямoй, диаметр 11 Fr, длина 15 см,Диализатoр низкoпoтoчный, синтетический с плoщадью пoверхнoсти мембраны – 1,8 м² | L21: 2124367.4 | O21: 21243.67 | P21: 106218.37 | Q21: 2017-09-13T12:00:00 | S21: 2017-09-19
A22: Алёна | C22: Выиграли | G22: 2017-09-03T14:14:00 | H22: ЗАО «Сбербанк-АСТ» | I22: 0320100031717000109 | J22: ФГКУ1477 ВОЕННО-МОРСКОЙ КЛИНИЧЕСКИЙ ГОСПИТАЛЬ МИНИСТЕРСТВА ОБОРОНЫ РОССИЙСКОЙ ФЕДЕРАЦИИ | K22: Шприц стерил.одноразов. 3-х комп. 1 мл.,Шприц стерил.одноразов. 3-х комп. инсулиновый 1 мл.,Шприц стерил.доноразов.50мл.,Шприц для промывания "Жане" 150мл. | L22: 59633 | M22: 35923.32 | N22: 33306.74 | O22: 596.33 | P22: 2981.65 | Q22: 2017-09-12T12:00:00 | S22: 2017-09-18 | V22: ВМС
C23: Отклонили по 1ч | G23: 2017-09-03T13:47:00 | H23: ЗАО «Сбербанк-АСТ» | I23: 0320100031717000108 | J23: ФГКУ1477 ВОЕННО-МОРСКОЙ КЛИНИЧЕСКИЙ ГОСПИТАЛЬ МИНИСТЕРСТВА ОБОРОНЫ РОССИЙСКОЙ ФЕДЕРАЦИИ | K23: Перекись водорода 33-40% раствор концентрат (канистра не менее 11 кг) | L23: 87360 | O23: 873.6 | P23: 4368 | Q23: 2017-09-12T12:00:00 | S23: 2017-09-18
C24: Отклонили по 2ч | G24: 2017-09-04T08:49:00 | H24: ЗАО «Сбербанк-АСТ» | I24: 0320300011217000100 | J24: МИХАЙЛОВСКАЯ ЦЕНТРАЛЬНАЯ РАЙОННАЯ БОЛЬНИЦА | K24: бинт гипс 15*300,лейкопластырь 2*500,вата нестер 250,0,лейкопластырь 10*25 | L24: 214185 | O24: 2141.85 | P24: 21418.5 | Q24: 2017-09-12T09:00:00 | S24: 2017-09-18
A25: Катя | C25: Жалоба в УФАС | G25: 2017-09-04T08:48:00 | H25: ЗАО «Сбербанк-АСТ» | I25: 0320300043117000121 | J25: ПАРТИЗАНСКАЯ ЦЕНТРАЛЬНАЯ РАЙОННАЯ БОЛЬНИЦА | K25: Бинт, катетер, марля, салфетки, тест-полоски, шапочка, шприц | L25: 899415 | O25: 8994.15 | P25: 44970.75 | Q25: 2017-09-12T09:00:00 | S25: 2017-09-18
A26: Юля | C26: Запрос | G26: 2017-09-04T08:45:00 | H26: ЗАО «Сбербанк-АСТ» | I26: 0320300043117000120 | J26: ПАРТИЗАНСКАЯ ЦЕНТРАЛЬНАЯ РАЙОННАЯ БОЛЬНИЦА | K26: Нить, перчатки, шпатель, эндотрахеальная трубка,кружка Эсмарха, Коннектор,Термобумага для аппарата ЭКГ | L26: 737412.5 | O26: 7374.13 | P26: 36870.63 | Q26: 2017-09-12T09:00:00 | S26: 2017-09-18
C27: Продлён | G27: 2017-09-04T08:36:00 | H27: ЗАО «Сбербанк-АСТ» | I27: 0320300082617000023 | J27: СТАНЦИЯ СКОРОЙ МЕДИЦИНСКОЙ ПОМОЩИ Г. АРТЕМА | K27: Облучатель-рециркулятор | L27: 94500 | O27: 945 | P27: 4725 | Q27: 2017-09-12T17:00:00 | S27: 2017-09-18
A28: Алёна | C28: Отменён | G28: 2017-09-04T08:26:00 | H28: ЗАО «Сбербанк-АСТ» | I28: 0320300082617000022 | J28: СТАНЦИЯ СКОРОЙ МЕДИЦИНСКОЙ ПОМОЩИ Г. АРТЕМА | K28: Катетер внутривенный с доп. портом и крыльями стерильный (G20),Устройство для вливания инфузионных растворов,Нить нерассасывающаяся,Набор для коникотомии одноразовый,Шприц инъекционный 2,0мл | L28: 145730 | O28: 1457.3 | P28: 7286.5 | Q28: 2017-09-13T17:00:00 | S28: 18.09.2017
A29: Юля | C29: Отгружаем | G29: 2017-09-05T15:54:00 | H29: РТС-тендер | I29: 0320300026117000108 | J29: ДАЛЬНЕРЕЧЕНСКАЯ ЦЕНТРАЛЬНАЯ ГОРОДСКАЯ БОЛЬНИЦА | K29: медицинского расходного материала | L29: 1718210 | O29: 17182.1 | P29: 171821 | Q29: 2017-09-13T10:00:00 | S29: 2017-09-18
C30: Расторгнут | G30: 2017-09-05T11:17:00 | H30: ЗАО «Сбербанк-АСТ» | I30: 0320100031717000114 | J30: 1477 ВОЕННО-МОРСКОЙ КЛИНИЧЕСКИЙ ГОСПИТАЛЬ МИНИСТЕРСТВА ОБОРОНЫ РОССИЙСКОЙ ФЕДЕРАЦИИ МИНИСТЕРСТВА ОБОРОНЫ РОССИЙСКОЙ ФЕДЕРАЦИИ | K30: Поставка расходных медицинских материалов для станции переливания крови | L30: 355940 | O30: 3559.4 | P30: 17797 | Q30: 2017-09-14T12:00:00 | S30: 2017-09-20
C31: Закрыт | G31: 2017-09-05T17:42:00 | H31: РТС-тендер | I31: 0320300026117000109 | J31: ДАЛЬНЕРЕЧЕНСКАЯ ЦЕНТРАЛЬНАЯ ГОРОДСКАЯ БОЛЬНИЦА | K31: Шприц, система инфузионная с лейкопластырем и иглой-бабочкой, иглы для взятия крови | L31: 2249460 | O31: 22494.6 | P31: 224946 | Q31: 2017-09-14T10:00:00 | S31: 2017-09-18
A32: Юля | B32: ЮМ | C32: Не выиграли | G32: 2017-09-06T20:02:00 | H32: ЗАО «Сбербанк-АСТ» | I32: 0320100031717000120 | J32: 1477 ВОЕННО-МОРСКОЙ КЛИНИЧЕСКИЙ ГОСПИТАЛЬ МИНИСТЕРСТВА ОБОРОНЫ РОССИЙСКОЙ ФЕДЕРАЦИИ | K32: Поставка изделий медицинского назначения (перчаток медицинских) | L32: 886020 | O32: 8860.2 | P32: 44301 | Q32: 2017-09-19T12:00:00 | S32: 2017-09-25

Sheet Отчёт 1
A1: Статистика 2017 г. | E1: Краткие итоги | F1: Не работ | G1: Принят в работ | H1: Выиграли | I1: Не выиграли | J1: Отклон 1 часть | K1: Отклон 2 часть | L1: Жалоба в УФАС | M1: Запрос | N1: Отменён | O1: Отгру жаем | P1: Растор гнут | Q1: Закрыт
E2: Выполняется процессов сейчас | F2: =COUNTIF('Журнал торгов'!C2:C10000,"Не работаем") -> 1 | G2: =COUNTIF('Журнал торгов'!C2:C10000,"Принят в работу") -> 1 | H2: =COUNTIF('Журнал торгов'!C2:C10000,"Выиграли") -> 1 | I2: =COUNTIF('Журнал торгов'!C2:C10000,"Не выиграли") -> 1 | J2: =COUNTIF('Журнал торгов'!C2:C10000,"Отклонили по 1ч") -> 1 | K2: =COUNTIF('Журнал торгов'!C2:C10000,"Отклонили по 2ч") -> 1 | L2: =COUNTIF('Журнал торгов'!C2:C10000,"Жалоба в УФАС") -> 1 | M2: =COUNTIF('Журнал торгов'!C2:C10000,"Запрос") -> 1 | N2: =COUNTIF('Журнал торгов'!C2:C10000,"Отменён") -> 1 | O2: =COUNTIF('Журнал торгов'!C2:C10000,"Отгружаем") -> 1 | P2: =COUNTIF('Журнал торгов'!C2:C10000,"Расторгнут") -> 1 | Q2: =COUNTIF('Журнал торгов'!C2:C10000,"Закрыт") -> 1
E3: Выполнено процессов за всё время | F3: =COUNTIF(D8:D5003,"Не работаем") -> 1 | G3: =COUNTIF(D8:D5003,"Принят в работу") -> 1 | H3: =COUNTIF(D8:D5003,"Выиграли") -> 1 | I3: =COUNTIF(D8:D5003,"Не выиграли") -> 1 | J3: =COUNTIF(D8:D5003,"Отклонили по 1ч") -> 1 | K3: =COUNTIF(D8:D5003,"Отклонили по 2ч") -> 1 | L3: =COUNTIF(D8:D5003,"Жалоба в УФАС") -> 3 | M3: =COUNTIF(D8:D5003,"Запрос") -> 2 | N3: =COUNTIF(D8:D5003,"Отменён") -> 1 | O3: =COUNTIF(D8:D5003,"Отгружаем") -> 1 | P3: =COUNTIF(D8:D5003,"Расторгнут") -> 1 | Q3: =COUNTIF(D8:D5003,"Закрыт") -> 1
A4: Дата и время: | E4: =NOW() -> 2017-11-14T13:52:49.540 | F4: ИТОГО за всё время:
F5: =SUBTOTAL(9,F8:F5006) -> 4 | G5: =SUBTOTAL(9,G8:G5006) -> 10 | H5: =SUBTOTAL(9,H8:H5006) -> 0 | I5: 0 | J5: 0 | K5: =SUBTOTAL(9,K8:K5006) -> 1 | L5: 3 | M5: 1 | N5: 1
B6: Ответственные | F6: Аукцион | H6: Деньги, руб. | K6: Запросы и жалобы в УФАС | O6: Ссылки
A7: Дата и время | B7: СТО | C7: МП | D7: Статус | E7: № извещения | F7: Актив | G7: Пассив | H7: НМЦК | I7: СВК | J7: Разница сумм | K7: Продлён срок | L7: Аукцион снят | M7: Обоснованно | N7: Необоснованно | O7: Наш запрос | P7: Ответ нам | Q7: Примечание
D8: Не работаем | F8: 1 | J8: =H8-I8 -> 0
D9: Принят в работу | G9: 1
D10: Выиграли | G10: 1
D11: Не выиграли | G11: 1
D12: Отклонили по 1ч | F12: 1
D13: Отклонили по 2ч | G13: 1
D14: Жалоба в УФАС | G14: 1 | L14: 1
D15: Жалоба в УФАС | F15: 1 | M15: 1
D16: Жалоба в УФАС | G16: 1 | N16: 1
D17: Запрос | G17: 1 | K17: 1
D18: Запрос | G18: 1 | L18: 1
D19: Отменён | F19: 1 | L19: 1
D20: Отгружаем | G20: 1
D21: Расторгнут | G21: 1
D22: Закрыт

Sheet Отчёт 2
A1: Дата | B1: Не рабо таем | C1: Принят в работу | D1: Выиграли | E1: Не выиграли | F1: Отклонили по 1 части | G1: Отклонили по 2 части | H1: Жалоба в УФАС | I1: Запрос | J1: Отменён | K1: Отгру жаем | L1: Растор гнут | M1: Закрыт | N1: Актив | O1: Пассив | P1: Продлён срок | Q1: Аукцион снят | R1: Обоснованно | S1: Необоснованно

Sheet Отчёт 3
A1: Тенд. Спец | B1: Менеджер | C1: Фирма | D1: Статус закрыт | E1: ЛПУ | F1: № извещения | G1: № кон-та | H1: Предмет контракта | I1: НМЦ аукциона | J1: % понижения | K1: экономия бюджета ЛПУ | L1: 2017год | M1: Дата подписания контракта | N1: Дата исполнения, до | O1: Размер обеспечения | P1: расчетная сумма закупа | Q1: наценка | R1: % НАЦЕНКИ | S1: Поставлено товара в ЛПУ по документам, руб. | T1: Наш долг по товару, руб | U1: Оплачено ЛПУ, руб. | V1: Долг по оплате ЛПУ, руб. на 23.06.2017г. Только за контракты 2017года | W1: % поставленных товаров | X1: % оплаченных товаров | Y1: прибыль по поставленным товарам | Z1: прибыль по оплаченным товарам | AA1: Ожидаемая прибыль по непоставленным и не оплаченым товарам по контрактам за 2017год
L2: =SUM(L3,L14) -> 13682922.08 | T2: =L2-S2 -> 13682922.08 | U2: =U3+U14+#REF!+#REF!+#REF!+#REF!+#REF!+#REF!+#REF!+#REF!+#REF!+#REF!+#REF!+#REF!+#REF!+#REF!+#REF!+#REF!+#REF!+#REF!+#REF!+#REF!+#REF!+#REF!+#REF!+#REF!+#REF!+#REF!+#REF!+#REF!+#REF!+#REF!+#REF!+#REF!+#REF!+#REF!+#REF!+#REF!+#REF!+#REF!+#REF!+#REF!+#REF!+#REF!+#REF!+#REF!+#REF!+#REF!+#REF! ->  | V2: =S2-U2 ->  | AA2: =AA3+AA14+#REF!+#REF!+#REF!+#REF!+#REF!+#REF!+#REF!+#REF!+#REF!+#REF!+#REF!+#REF!+#REF!+#REF!+#REF!+#REF!+#REF!+#REF!+#REF!+#REF!+#REF!+#REF!+#REF!+#REF!+#REF!+#REF!+#REF!+#REF!+#REF!+#REF!+#REF!+#REF! -> 
E3: Детская поликлиника №5 | L3: =SUM(L4:L12) -> 3822879 | P3: =L3-Q3 -> 1762570 | Q3: =SUM(Q4:Q12) -> 2060309 | R3: =(L3/P3)-1 -> 1.16892322 | S3: =SUM(S4:S12) -> 1192384.15 | T3: =L3-S3 -> 2630494.85 | U3: =SUM(U4:U12) -> 1192384.15 | V3: =S3-U3 -> 0 | W3: =(S3*100)/L3 -> 31.1907374 | X3: =(U3*100)/L3 -> 31.1907374 | Y3: =(Q3/100)*W3 -> 642625.5698 | Z3: =(Q3/100)*X3 -> 642625.5698 | AA3: =Q3-Z3 -> 1417683.43
C4: СЕРВИС | E4: КГБУЗ "Детская поликлиника №5" | F4: 0320300111016000078 | H4: измер.приборы | I4: 357770 | J4: =(L4/I4-1)*100 -> -46.53352713 | K4: =I4-L4 -> 166483 | L4: 191287 | M4: 2017-02-07 | N4: 2017-12-31 | O4: БГ | P4: 190000 | Q4: =L4-P4 -> 1287 | S4: 191287 | T4: 0 | U4: 191287 | V4: 0
C5: СЕРВИС | E5: КГБУЗ "Детская поликлиника №5" | F5: 0320300111017000008 | H5: гели, перчатки | I5: 725680 | J5: -5 | K5: 36284 | L5: 689396 | M5: 2017-03-21 | N5: 2017-12-31 | O5: БГ | P5: 581860 | Q5: =L5-P5 -> 107536 | S5: 384797.5 | T5: 304598.5 | U5: 384797.5 | V5: 0
C6: СЕРВИС | E6: КГБУЗ "Детская поликлиника №5" | F6: 0320300111017000009 | H6: колющие | I6: 1370977.5 | J6: 0 | K6: 0 | L6: 1370977.5 | M6: 2017-03-30 | N6: 2017-12-31 | O6: БГ | P6: 287180 | Q6: 1083797.5 | S6: 265603.65 | T6: 1105373.85 | U6: 265603.65 | V6: 0
C7: СЕРВИС | E7: КГБУЗ "Детская поликлиника №5" | F7: 0320300111017000010 | H7: салфетки | I7: 557550 | J7: 0 | K7: 0 | L7: 557550 | M7: 2017-03-30 | N7: 2017-12-31 | O7: БГ | P7: 218600 | Q7: 338950 | S7: 42525 | T7: 515025 | U7: 42525 | V7: 0
C8: СЕРВИС | E8: КГБУЗ "Детская поликлиника №5" | F8: 0320300111017000011 | H8: рентген | I8: 410000 | J8: -46.8095122 | K8: 191919 | L8: 218081 | M8: 2017-04-03 | N8: 2017-12-31 | O8: БГ | P8: 126130 | Q8: 91951 | S8: 218081 | T8: 0 | U8: 218081 | V8: 0
C9: СЕРВИС | E9: КГБУЗ "Детская поликлиника №5" | F9: 0320300111017000016 | H9: перчатки | I9: 404550 | J9: -5 | K9: 20227.5 | L9: 384322.5 | M9: 2017-06-14 | N9: 2017-12-31 | O9: БГ | P9: 160000 | Q9: 224322.5 | S9: 0 | T9: 384322.5 | U9: 0 | V9: =S9-U9 -> 0
C10: ИП СЕРОВА | E10: КГБУЗ "Детская поликлиника №5" | F10: 0320300111017000017 | H10: салфетки | I10: 88900 | J10: 0 | K10: 0 | L10: 88900 | M10: 2017-06-14 | N10: 2017-12-31 | O10: БГ | P10: 49200 | Q10: 39700 | S10: 0 | T10: 88900 | U10: 0 | V10: =S10-U10 -> 0
C11: ИП СЕРОВА | E11: КГБУЗ "Детская поликлиника №5" | F11: 0320300111017000018 | H11: шпатели | I11: 103200 | J11: 0 | K11: 0 | L11: 103200 | M11: 2017-06-14 | N11: 2017-12-31 | O11: БГ | P11: 83200 | Q11: 20000 | S11: 6450 | T11: 96750 | U11: 6450 | V11: =S11-U11 -> 0
C12: ИП СЕРОВА | E12: КГБУЗ "Детская поликлиника №5" | F12: 0320300111017000020 | H12: бахилы | I12: 219165 | J12: 0 | K12: 0 | L12: 219165 | M12: 2017-06-14 | N12: 2017-12-31 | O12: БГ | P12: 66400 | Q12: 152765 | S12: 83640 | T12: 135525 | U12: 83640 | V12: =S12-U12 -> 0
E14: Находкинская ГБ | L14: =SUM(L15:L20) -> 9860043.08 | P14: =L14-Q14 -> 4236000 | Q14: =SUM(Q15:Q20) -> 5624043.08 | R14: =(L14/P14)-1 -> 1.327677781 | S14: =SUM(S15:S20) -> 1474163.74 | T14: =L14-S14 -> 8385879.34 | U14: =SUM(U15:U20) -> 0 | V14: =S14-U14 -> 1474163.74 | W14: =(S14*100)/L14 -> 14.95088539 | X14: =(U14*100)/L14 -> 0 | Y14: =(Q14/100)*W14 -> 840844.235 | Z14: =(Q14/100)*X14 -> 0 | AA14: =Q14-Z14 -> 5624043.08
C15: ВМС | E15: КГБУЗ "Находкинская ГБ" | F15: договор разовый | G15: 24 | H15: ИМН | J15: =(L15/I15-1)*100 ->  | L15: 26265 | M15: 2017-02-13 | N15: 2017-12-31 | P15: 18500 | Q15: =L15-P15 -> 7765 | S15: 26265 | T15: =L15-S15 -> 0 | U15: 0 | V15: =S15-U15 -> 26265
C16: ВМС | E16: КГБУЗ "Находкинская ГБ" | F16: договор разовый | G16: 25 | H16: ИМН | L16: 13500 | M16: 2017-02-13 | N16: 2017-12-31 | P16: 8400 | Q16: 5100 | S16: 13500 | T16: 0 | U16: 0 | V16: 13500
C17: ВМС | E17: КГБУЗ "Находкинская ГБ" | F17: 0320300150416000519 | H17: рентген | I17: 8426690.1 | J17: 0 | K17: =I17-L17 -> 0 | L17: 8426690.1 | M17: 2017-01-23 | N17: 2017-11-30 | O17: БГ | P17: 3370000 | Q17: 5056690.1 | S17: 1368650.74 | T17: 7058039.36 | U17: 0 | V17: 1368650.74
C18: СЕРВИС | E18: КГБУЗ "Находкинская ГБ" | F18: 0320300150417000017 | H18: ФД | I18: 1172750.98 | J18: 0 | K18: =I18-L18 -> 0 | L18: 1172750.98 | M18: 2017-03-24 | N18: 2017-11-30 | O18: БГ | P18: 650000 | Q18: 522750.98 | S18: 15020 | T18: 1157730.98 | U18: 0 | V18: 15020
C19: СЕРВИС | D19: котировка | E19: КГБУЗ "Находкинская ГБ" | F19: 0320300150417000175 | H19: рентген одежда | I19: 59732.74 | J19: -15.07504929 | K19: =I19-L19 -> 9004.74 | L19: 50728 | M19: 2017-06-01 | N19: …2017 | P19: 39100 | Q19: 11628 | S19: 50728 | T19: 0 | U19: 0 | V19: 50728
C20: СЕРВИС | E20: КГБУЗ "Находкинская ГБ" | F20: 0320300150417000190 | H20: вата | I20: 215000 | J20: -20.87953488 | K20: =I20-L20 -> 44891 | L20: 170109 | M20: 2017-06-19 | N20: …2017 | P20: 150000 | Q20: 20109 | S20: 0 | T20: 170109 | U20: 0 | V20: 0
